fUSD/lending_fUSD_20250417
["ID","MTS","AMOUNT","RATE_DAILY","PERIOD"]
[358267797,1744884657774,-500.0,0.00056986,120]
[358267798,1744884657783,-500.0,0.00056986,120]
[358267799,1744884657793,-500.0,0.00056986,120]
[358267800,1744884657925,-500.0,0.00056986,120]
[358267801,1744884657935,-500.0,0.00056986,120]
[358267802,1744884657946,-555.81,0.00056986,120]
[358267803,1744884657955,-500.0,0.00056986,120]
[358267804,1744884657964,-500.0,0.00056986,120]
[358267805,1744884657973,-500.0,0.00056986,120]
[358267806,1744884657982,-500.0,0.00056986,120]
[358267807,1744884657991,-500.0,0.00056986,120]
[358267808,1744884658000,-500.0,0.00056986,120]
[358267809,1744884658010,-500.0,0.00056986,120]
[358267810,1744884658020,-500.0,0.00056986,120]
[358267811,1744884658029,-500.0,0.00056986,120]
[358267812,1744884658038,-501.2706282,0.00056986,120]
[358267813,1744884658047,-500.0,0.00056986,120]
[358267814,1744884658057,-500.0,0.00056986,120]
[358267815,1744884658066,-467.0,0.00056986,120]
[358267816,1744884658075,-500.0,0.00056986,120]
[358267817,1744884658085,-500.0,0.00056986,120]
[358267818,1744884658094,-468.96435686,0.00056986,120]
[358267819,1744884658104,-500.0,0.00056986,120]
[358267820,1744884658113,-463.8,0.00056986,120]
[358267821,1744884658122,-432.88204118,0.00056986,120]
[358267822,1744884658131,-500.0,0.00056986,120]
[358267823,1744884658140,-500.0,0.00056986,120]
[358267824,1744884658150,-500.0,0.00056986,120]
[358267825,1744884658159,-500.0,0.00056986,120]
[358267826,1744884658169,-613.2,0.00056986,120]
[358267827,1744884658178,-500.0,0.00056986,120]
[358267828,1744884658189,-481.70975032,0.00056986,120]
[358267829,1744884658198,-151.0,0.00056986,120]
[358267830,1744884658208,-500.0,0.00056986,120]
[358267831,1744884658218,-500.0,0.00056986,120]
[358267832,1744884658228,-403.93234718,0.00056986,120]
[358267833,1744884658238,-500.0,0.00056986,120]
[358267834,1744884658247,-500.0,0.00056986,120]
[358267835,1744884658256,-500.0,0.00056986,120]
[358267836,1744884658265,-500.0,0.00056986,120]
[358267837,1744884658276,-624.7,0.00056986,120]
[358267838,1744884658286,-151.0,0.00056986,120]
[358267839,1744884658296,-500.0,0.00056986,120]
[358267840,1744884658305,-500.0,0.00056986,120]
[358267841,1744884658315,-151.0,0.00056986,120]
[358267842,1744884658325,-500.0,0.00056986,120]
[358267843,1744884658335,-358.96,0.00056986,120]
[358267844,1744884658344,-500.0,0.00056986,120]
[358267845,1744884658354,-500.0,0.00056986,120]
[358267846,1744884658363,-500.0,0.00056986,120]
[358267847,1744884658372,-500.0,0.00056986,120]
[358267848,1744884658381,-151.0,0.00056986,120]
[358267849,1744884658391,-490.16,0.00056986,120]
[358267850,1744884658400,-644.17,0.00056986,120]
[358267851,1744884658409,-500.0,0.00056986,120]
[358267852,1744884658418,-500.0,0.00056986,120]
[358267853,1744884658428,-151.0,0.00056986,120]
[358267854,1744884658437,-151.442983,0.00056986,120]
[358267855,1744884658446,-151.0,0.00056986,120]
[358267856,1744884658455,-421.03521306,0.00056986,120]
[358267857,1744884658465,-500.0,0.00056986,120]
[358267858,1744884658474,-603.72936728,0.00056986,120]
[358267859,1744884658483,-500.0,0.00056986,2]
[358267860,1744884658493,-151.0,0.00056986,120]
[358267861,1744884658504,-500.0,0.00056986,120]
[358267862,1744884658514,-153.049903,0.00056986,120]
[358267863,1744884658525,-500.0,0.00056986,120]
[358267864,1744884658534,-500.0,0.00056986,120]
[358267865,1744884658543,-500.0,0.00056986,120]
[358267866,1744884658552,-500.0,0.00056986,120]
[358267867,1744884658562,-1000.0,0.00056986,120]
[358267868,1744884658571,-500.0,0.00056986,120]
[358267869,1744884658580,-500.0,0.00056986,120]
[358267870,1744884658589,-151.0,0.00056986,120]
[358267871,1744884658599,-151.0,0.00056986,120]
[358267872,1744884658608,-500.0,0.00056986,120]
[358267873,1744884658617,-500.0,0.00056986,120]
[358267874,1744884658627,-1101.37758374,0.00056986,35]
[358267875,1744884658636,-500.0,0.00056986,120]
[358267876,1744884658645,-500.0,0.00056986,120]
[358267877,1744884658655,-500.0,0.00056986,120]
[358267878,1744884658664,-151.0,0.00056986,120]
[358267879,1744884658673,-500.0,0.00056986,120]
[358267880,1744884658683,-500.0,0.00056986,120]
[358267881,1744884658693,-478.835141,0.00056986,120]
[358267882,1744884658702,-500.0,0.00056986,120]
[358267883,1744884658711,-500.0,0.00056986,120]
[358267884,1744884658721,-1350.14,0.00056986,120]
[358267885,1744884658730,-500.0,0.00056986,120]
[358267886,1744884658741,-151.0,0.00056986,120]
[358267887,1744884658751,-500.0,0.00056986,120]
[358267888,1744884658761,-500.0,0.00056986,120]
[358267889,1744884658771,-299.49,0.00056986,120]
[358267890,1744884658781,-500.0,0.00056986,120]
[358267891,1744884658790,-500.0,0.00056986,120]
[358267892,1744884658799,-537.16495794,0.00056986,120]
[358267893,1744884658810,-500.0,0.00056986,120]
[358267894,1744884658820,-500.0,0.00056986,120]
[358267895,1744884658831,-500.0,0.00056986,120]
[358267896,1744884658841,-520.56,0.00056986,120]
[358267897,1744884658851,-13912.12,0.00056986,7]
[358267898,1744884658862,-269.36350828,0.00056986,120]
[358267899,1744884658874,-500.0,0.00056986,120]
[358267900,1744884658883,-500.0,0.00056986,120]
[358267901,1744884658892,-586.26713258,0.00056986,120]
[358267902,1744884658901,-500.0,0.00056986,120]
[358267903,1744884658911,-500.0,0.00056986,120]
[358267904,1744884658920,-500.0,0.00056986,120]
[358267905,1744884658929,-500.0,0.00056986,120]
[358267906,1744884658940,-426.2423147,0.00056986,120]
[358267907,1744884658949,-500.0,0.00056986,120]
[358267908,1744884658959,-502.27,0.00056986,120]
[358267909,1744884658968,-500.0,0.00056986,120]
[358267910,1744884658978,-500.0,0.00056986,120]
[358267911,1744884658987,-515.67407538,0.00056986,120]
[358267912,1744884658997,-500.0,0.00056986,120]
[358267913,1744884659006,-500.0,0.00056986,120]
[358267914,1744884659015,-500.0,0.00056986,120]
[358267915,1744884659024,-500.0,0.00056986,120]
[358267916,1744884659033,-500.0,0.00056986,120]
[358267917,1744884659042,-500.0,0.00056986,120]
[358267918,1744884659052,-630.57565976,0.00056986,120]
[358267919,1744884659060,-500.0,0.00056986,120]
[358267920,1744884659070,-500.0,0.00056986,120]
[358267921,1744884659080,-500.0,0.00056986,120]
[358267922,1744884659090,-500.0,0.00056986,120]
[358267923,1744884659099,-500.0,0.00056986,120]
[358267924,1744884659109,-500.0,0.00056986,120]
[358267925,1744884659118,-500.0,0.00056986,120]
[358267926,1744884659128,-500.0,0.00056986,120]
[358267927,1744884659137,-500.0,0.00056986,120]
[358267928,1744884659146,-500.0,0.00056986,120]
[358267929,1744884659155,-594.06,0.00056986,120]
[358267930,1744884659163,-500.0,0.00056986,120]
[358267931,1744884659171,-7351.09,0.00056986,120]
[358267932,1744884659180,-500.0,0.00056986,120]
[358267933,1744884659188,-500.0,0.00056986,120]
[358267934,1744884659197,-500.0,0.00056986,120]
[358267935,1744884659206,-800.0,0.00056986,120]
[358267936,1744884659215,-500.0,0.00056986,120]
[358267937,1744884659225,-500.0,0.00056986,120]
[358267938,1744884659235,-500.0,0.00056986,120]
[358267939,1744884659245,-500.0,0.00056986,120]
[358267940,1744884659255,-183.76799752,0.00056986,120]
[358267941,1744884659265,-500.0,0.00056986,120]
[358267942,1744884659275,-500.0,0.00056986,120]
[358267943,1744884659285,-229.03800838,0.00056986,120]
[358267944,1744884659294,-650.0,0.00056986,120]
[358267945,1744884659303,-500.0,0.00056986,120]
[358267946,1744884659314,-500.0,0.00056986,120]
[358267947,1744884659323,-500.0,0.00056986,120]
[358267948,1744884659333,-500.0,0.00056986,120]
[358267949,1744884659343,-500.0,0.00056986,120]
[358267950,1744884659353,-500.0,0.00056986,120]
[358267951,1744884659362,-500.0,0.00056986,120]
[358267952,1744884659372,-593.42,0.00056986,120]
[358267953,1744884659382,-500.0,0.00056986,120]
[358267954,1744884659392,-455.12809511,0.00056986,120]
[358267955,1744884659402,-500.0,0.00056986,8]
[358267956,1744884659412,-919.76,0.00056986,120]
[358267957,1744884659422,-783.78,0.00056986,120]
[358267958,1744884659431,-500.0,0.00056986,30]
[358267959,1744884659441,-500.0,0.00056986,120]
[358267960,1744884659451,-500.0,0.00056986,120]
[358267961,1744884659460,-853.26,0.00056986,120]
[358267962,1744884659470,-500.0,0.00056986,120]
[358267963,1744884659480,-500.0,0.00056986,120]
[358267964,1744884659490,-500.0,0.00056986,120]
[358267965,1744884659500,-500.0,0.00056986,120]
[358267966,1744884659509,-500.0,0.00056986,120]
[358267967,1744884659518,-500.0,0.00056986,2]
[358267968,1744884659528,-500.0,0.00056986,120]
[358267969,1744884659537,-500.0,0.00056986,120]
[358267970,1744884659546,-500.0,0.00056986,120]
[358267971,1744884659556,-500.0,0.00056986,120]
[358267972,1744884659566,-500.0,0.00056986,120]
[358267973,1744884659576,-500.0,0.00056986,120]
[358267974,1744884659586,-500.0,0.00056986,120]
[358267975,1744884659595,-500.0,0.00056986,120]
[358267976,1744884659605,-500.0,0.00056986,120]
[358267977,1744884659614,-500.0,0.00056986,120]
[358267978,1744884659624,-500.0,0.00056986,120]
[358267979,1744884659634,-500.0,0.00056986,120]
[358267980,1744884659643,-500.0,0.00056986,120]
[358267981,1744884659652,-17549.98983738,0.00057132,15]
[358267982,1744884659662,-500.0,0.00057389,15]
[358267983,1744884659671,-179.54374065,0.00057485,69]
[358267984,1744884659681,-185.18,0.00057595,2]
[358267985,1744884659690,-21970.69478225,0.00057792,15]
[358267986,1744884659699,-500.0,0.00057825,120]
[358267987,1744884659709,-9635.01053347,0.00057982,2]
[358267988,1744884659718,-860.0,0.00058,120]
[358267989,1744884659728,-500.0,0.00058081,2]
[358267990,1744884659738,-500.0,0.00058082,120]
[358267991,1744884659748,-500.0,0.00058082,120]
[358267992,1744884659757,-500.0,0.00058082,120]
[358267993,1744884659767,-540.36,0.00058082,120]
[358267994,1744884659777,-518.79,0.00058082,14]
[358267995,1744884659786,-500.0,0.00058082,120]
[358267996,1744884659794,-2000.0,0.00058082,2]
[358267997,1744884659804,-500.0,0.00058082,120]
[358267998,1744884659813,-500.0,0.00058082,120]
[358267999,1744884659823,-500.0,0.00058082,120]
[358268000,1744884659832,-500.0,0.00058082,120]
[358268001,1744884659842,-500.0,0.00058082,120]
[358268002,1744884659851,-500.0,0.00058082,120]
[358268003,1744884659861,-559.75306531,0.00058082,120]
[358268004,1744884659874,-500.0,0.00058082,120]
[358268005,1744884659883,-500.0,0.00058082,120]
[358268006,1744884659893,-500.0,0.00058082,120]
[358268007,1744884659902,-500.0,0.00058082,120]
[358268008,1744884659996,-500.0,0.00058082,120]
[358268009,1744884660006,-500.0,0.00058082,120]
[358268010,1744884660016,-500.0,0.00058082,120]
[358268011,1744884660029,-509.89834141,0.00058082,120]
[358268012,1744884660039,-1247.03,0.00058082,120]
[358268013,1744884660050,-500.0,0.00058082,120]
[358268014,1744884660061,-527.69,0.00058082,120]
[358268015,1744884660071,-614.33,0.00058082,120]
[358268016,1744884660082,-500.0,0.00058082,120]
[358268017,1744884660092,-500.0,0.00058082,120]
[358268018,1744884660102,-500.0,0.00058082,120]
[358268019,1744884660112,-615.02,0.00058082,120]
[358268020,1744884660122,-500.0,0.00058082,120]
[358268021,1744884660132,-545.31,0.00058082,120]
[358268022,1744884660142,-500.0,0.00058082,120]
[358268023,1744884660152,-500.0,0.00058082,120]
[358268024,1744884660162,-500.0,0.00058082,120]
[358268025,1744884660173,-500.0,0.00058082,120]
[358268026,1744884660183,-500.0,0.00058082,120]
[358268027,1744884660193,-500.0,0.00058082,120]
[358268028,1744884660202,-613.2,0.00058082,120]
[358268029,1744884660212,-500.0,0.00058082,120]
[358268030,1744884660221,-500.0,0.00058082,120]
[358268031,1744884660231,-500.0,0.00058082,120]
[358268032,1744884660241,-500.0,0.00058082,120]
[358268033,1744884660251,-571.08,0.00058082,120]
[358268034,1744884660260,-500.0,0.00058082,120]
[358268035,1744884660271,-500.0,0.00058082,120]
[358268036,1744884660281,-515.0,0.00058082,120]
[358268037,1744884660291,-500.0,0.00058082,120]
[358268038,1744884660301,-500.0,0.00058082,120]
[358268039,1744884660310,-500.0,0.00058082,120]
[358268040,1744884660319,-500.0,0.00058082,2]
[358268041,1744884660329,-500.0,0.00058082,120]
[358268042,1744884660339,-500.0,0.00058082,120]
[358268043,1744884660348,-500.0,0.00058082,120]
[358268044,1744884660358,-500.0,0.00058082,120]
[358268045,1744884660368,-500.0,0.00058082,120]
[358268046,1744884660378,-500.0,0.00058082,120]
[358268047,1744884660388,-500.0,0.00058082,120]
[358268048,1744884660398,-500.0,0.00058082,120]
[358268049,1744884660408,-500.0,0.00058082,120]
[358268050,1744884660417,-500.0,0.00058082,120]
[358268051,1744884660426,-500.0,0.00058082,120]
[358268052,1744884660436,-500.0,0.00058082,120]
[358268053,1744884660445,-646.27217519,0.00058082,120]
[358268054,1744884660454,-1350.14,0.00058082,120]
[358268055,1744884660464,-500.0,0.00058082,120]
[358268056,1744884660473,-500.0,0.00058082,120]
[358268057,1744884660483,-151.0,0.00058082,120]
[358268058,1744884660493,-500.0,0.00058082,120]
[358268059,1744884660503,-500.0,0.00058082,120]
[358268060,1744884660512,-500.0,0.00058082,120]
[358268061,1744884660521,-151.0,0.00058082,120]
[358268062,1744884660530,-500.0,0.00058082,120]
[358268063,1744884660540,-500.0,0.00058082,120]
[358268064,1744884660549,-151.0,0.00058082,120]
[358268065,1744884660559,-520.56,0.00058082,120]
[358268066,1744884660569,-13912.12,0.00058082,7]
[358268067,1744884660579,-606.19126776,0.00058082,120]
[358268068,1744884660589,-500.0,0.00058082,120]
[358268069,1744884660598,-151.0,0.00058082,120]
[358268070,1744884660608,-562.56724887,0.00058082,120]
[358268071,1744884660617,-151.0,0.00058082,120]
[358268072,1744884660627,-151.0,0.00058082,120]
[358268073,1744884660636,-500.0,0.00058082,120]
[358268074,1744884660645,-500.0,0.00058082,120]
[358268075,1744884660655,-502.27,0.00058082,120]
[358268076,1744884660665,-500.0,0.00058082,120]
[358268077,1744884660674,-500.0,0.00058082,120]
[358268078,1744884660684,-521.21,0.00058082,120]
[358268079,1744884660694,-151.0,0.00058082,120]
[358268080,1744884660703,-500.0,0.00058082,120]
[358268081,1744884660713,-192.333825,0.00058082,120]
[358268082,1744884660722,-500.0,0.00058082,120]
[358268083,1744884660732,-500.0,0.00058082,120]
[358268084,1744884660741,-151.0,0.00058082,120]
[358268085,1744884660751,-500.0,0.00058082,120]
[358268086,1744884660761,-151.0,0.00058082,120]
[358268087,1744884660771,-500.0,0.00058082,120]
[358268088,1744884660781,-500.0,0.00058082,120]
[358268089,1744884660791,-500.0,0.00058082,120]
[358268090,1744884660800,-500.0,0.00058082,120]
[358268091,1744884660810,-500.0,0.00058082,120]
[358268092,1744884660820,-233.30253881,0.00058082,120]
[358268093,1744884660830,-594.06,0.00058082,120]
[358268094,1744884660840,-500.0,0.00058082,120]
[358268095,1744884660850,-7351.09,0.00058082,120]
[358268096,1744884660859,-500.0,0.00058082,120]
[358268097,1744884660874,-500.0,0.00058082,120]
[358268098,1744884660883,-500.0,0.00058082,120]
[358268099,1744884660893,-500.0,0.00058082,120]
[358268100,1744884660903,-800.0,0.00058082,120]
[358268101,1744884660914,-500.0,0.00058082,120]
[358268102,1744884660923,-500.0,0.00058082,120]
[358268103,1744884660933,-500.0,0.00058082,120]
[358268104,1744884660943,-650.0,0.00058082,120]
[358268105,1744884660952,-500.0,0.00058082,120]
[358268106,1744884660963,-500.0,0.00058082,120]
[358268107,1744884660972,-500.0,0.00058082,120]
[358268108,1744884660981,-500.0,0.00058082,120]
[358268109,1744884660991,-500.0,0.00058082,120]
[358268110,1744884661001,-593.42,0.00058082,120]
[358268111,1744884661010,-556.47,0.00058082,120]
[358268112,1744884661021,-500.0,0.00058082,8]
[358268113,1744884661031,-919.76,0.00058082,120]
[358268114,1744884661041,-783.78,0.00058082,120]
[358268115,1744884661050,-500.0,0.00058082,30]
[358268116,1744884661060,-500.0,0.00058082,120]
[358268117,1744884661069,-500.0,0.00058082,120]
[358268118,1744884661079,-853.26,0.00058082,120]
[358268119,1744884661088,-500.0,0.00058082,120]
[358268120,1744884661097,-500.0,0.00058082,120]
[358268121,1744884661107,-500.0,0.00058082,120]
[358268122,1744884661116,-500.0,0.00058082,120]
[358268123,1744884661125,-500.0,0.00058082,120]
[358268124,1744884661135,-551.74783271,0.00058082,2]
[358268125,1744884661144,-500.0,0.00058082,120]
[358268126,1744884661153,-500.0,0.00058082,120]
[358268127,1744884661163,-500.0,0.00058082,120]
[358268128,1744884661173,-520.44,0.00058082,120]
[358268129,1744884661182,-500.0,0.00058082,120]
[358268130,1744884661192,-500.0,0.00058082,120]
[358268131,1744884661201,-500.0,0.00058082,120]
[358268132,1744884661211,-500.0,0.00058082,120]
[358268133,1744884661220,-500.0,0.00058082,120]
[358268134,1744884661229,-491.49569286,0.00058082,120]
[358268135,1744884661239,-500.0,0.00058082,120]
[358268136,1744884661248,-500.0,0.00058082,120]
[358268137,1744884661258,-151.0,0.00058164,120]
[358268138,1744884661270,-151.0,0.00058164,120]
[358268139,1744884661279,-151.0,0.00058164,120]
[358268140,1744884661289,-151.0,0.00058164,120]
[358268141,1744884661300,-151.0,0.00058164,120]
[358268142,1744884661310,-151.0,0.00058164,120]
[358268143,1744884661319,-160.88883066,0.00058466,37]
[358268144,1744884661330,-151.0,0.00058516,120]
[358268145,1744884661339,-151.0,0.00058516,120]
[358268146,1744884661349,-156.811599,0.00058516,120]
[358268147,1744884661359,-17549.98983738,0.00058516,15]
[358268148,1744884661368,-1800.574,0.00058557,115]
[358268149,1744884661377,-254.318,0.00058557,115]
[358268150,1744884661387,-21970.69478225,0.00058846,15]
[358268151,1744884661397,-500.0,0.00059178,120]
[358268152,1744884661407,-500.0,0.00059178,120]
[358268153,1744884661417,-628.11823594,0.00059178,120]
[358268154,1744884661427,-540.36,0.00059178,120]
[358268155,1744884661437,-2000.0,0.00059178,2]
[358268156,1744884661446,-500.0,0.00059178,120]
[358268157,1744884661456,-500.0,0.00059178,120]
[358268158,1744884661466,-500.0,0.00059178,120]
[358268159,1744884661476,-500.0,0.00059178,120]
[358268160,1744884661485,-500.0,0.00059178,120]
[358268161,1744884661495,-500.0,0.00059178,120]
[358268162,1744884661504,-500.0,0.00059178,120]
[358268163,1744884661514,-151.0,0.00059178,120]
[358268164,1744884661525,-500.0,0.00059178,120]
[358268165,1744884661535,-500.0,0.00059178,120]
[358268166,1744884661545,-500.0,0.00059178,120]
[358268167,1744884661554,-500.0,0.00059178,120]
[358268168,1744884661564,-151.0,0.00059178,110]
[358268169,1744884661573,-500.0,0.00059178,120]
[358268170,1744884661583,-1247.03,0.00059178,120]
[358268171,1744884661593,-151.0,0.00059178,120]
[358268172,1744884661602,-500.0,0.00059178,120]
[358268173,1744884661611,-500.0,0.00059178,120]
[358268174,1744884661621,-242.644701,0.00059178,120]
[358268175,1744884661630,-151.0,0.00059178,120]
[358268176,1744884661639,-381.06,0.00059178,120]
[358268177,1744884661648,-500.0,0.00059178,120]
[358268178,1744884661658,-151.0,0.00059178,120]
[358268179,1744884661667,-500.0,0.00059178,120]
[358268180,1744884661677,-500.0,0.00059178,120]
[358268181,1744884661686,-500.0,0.00059178,120]
[358268182,1744884661695,-497.43488699,0.00059178,120]
[358268183,1744884661705,-613.2,0.00059178,120]
[358268184,1744884661715,-500.0,0.00059178,120]
[358268185,1744884661724,-488.03,0.00059178,120]
[358268186,1744884661733,-500.0,0.00059178,120]
[358268187,1744884661742,-500.0,0.00059178,120]
[358268188,1744884661752,-306.41,0.00059178,120]
[358268189,1744884661761,-500.0,0.00059178,120]
[358268190,1744884661772,-500.0,0.00059178,2]
[358268191,1744884661781,-287.03,0.00059178,120]
[358268192,1744884661790,-401.63,0.00059178,120]
[358268193,1744884661799,-500.0,0.00059178,120]
[358268194,1744884661808,-500.0,0.00059178,120]
[358268195,1744884661817,-500.0,0.00059178,120]
[358268196,1744884661826,-500.0,0.00059178,120]
[358268197,1744884661836,-500.0,0.00059178,120]
[358268198,1744884661846,-500.0,0.00059178,120]
[358268199,1744884661856,-637.21,0.00059178,120]
[358268200,1744884661947,-500.0,0.00059178,120]
[358268201,1744884661956,-500.0,0.00059178,120]
[358268202,1744884661965,-1350.14,0.00059178,120]
[358268203,1744884661974,-500.0,0.00059178,120]
[358268204,1744884661984,-500.0,0.00059178,120]
[358268205,1744884661993,-500.0,0.00059178,120]
[358268206,1744884662002,-236.49903979,0.00059178,120]
[358268207,1744884662011,-500.0,0.00059178,120]
[358268208,1744884662021,-520.56,0.00059178,120]
[358268209,1744884662031,-13912.12,0.00059178,7]
[358268210,1744884662041,-500.0,0.00059178,120]
[358268211,1744884662051,-502.27,0.00059178,120]
[358268212,1744884662060,-500.0,0.00059178,120]
[358268213,1744884662069,-230.99882974,0.00059178,120]
[358268214,1744884662078,-336.60501422,0.00059178,120]
[358268215,1744884662087,-492.75,0.00059178,120]
[358268216,1744884662097,-500.0,0.00059178,120]
[358268217,1744884662106,-500.0,0.00059178,120]
[358268218,1744884662115,-500.0,0.00059178,120]
[358268219,1744884662124,-500.0,0.00059178,120]
[358268220,1744884662133,-500.0,0.00059178,120]
[358268221,1744884662143,-594.06,0.00059178,120]
[358268222,1744884662152,-500.0,0.00059178,120]
[358268223,1744884662161,-7351.09,0.00059178,120]
[358268224,1744884662171,-500.0,0.00059178,120]
[358268225,1744884662180,-500.0,0.00059178,120]
[358268226,1744884662189,-383.16265504,0.00059178,120]
[358268227,1744884662199,-500.0,0.00059178,120]
[358268228,1744884662209,-800.0,0.00059178,120]
[358268229,1744884662219,-500.0,0.00059178,120]
[358268230,1744884662229,-500.0,0.00059178,120]
[358268231,1744884662239,-301.290246,0.00059178,120]
[358268232,1744884662249,-650.0,0.00059178,120]
[358268233,1744884662258,-500.0,0.00059178,120]
[358268234,1744884662271,-500.0,0.00059178,120]
[358268235,1744884662281,-500.0,0.00059178,120]
[358268236,1744884662291,-151.0,0.00059178,120]
[358268237,1744884662301,-500.0,0.00059178,120]
[358268238,1744884662311,-593.42,0.00059178,120]
[358268239,1744884662321,-151.0,0.00059178,120]
[358268240,1744884662330,-239.1,0.00059178,8]
[358268241,1744884662340,-919.76,0.00059178,120]
[358268242,1744884662349,-783.78,0.00059178,120]
[358268243,1744884662359,-500.0,0.00059178,30]
[358268244,1744884662368,-500.0,0.00059178,120]
[358268245,1744884662378,-853.26,0.00059178,120]
[358268246,1744884662387,-279.53,0.00059178,120]
[358268247,1744884662396,-500.0,0.00059178,120]
[358268248,1744884662406,-500.0,0.00059178,120]
[358268249,1744884662416,-151.0,0.00059178,120]
[358268250,1744884662425,-500.0,0.00059178,120]
[358268251,1744884662435,-161.81,0.00059178,120]
[358268252,1744884662444,-614.99835066,0.00059178,120]
[358268253,1744884662453,-266.17304149,0.00059178,120]
[358268254,1744884662463,-500.0,0.00059178,120]
[358268255,1744884662472,-500.0,0.00059178,120]
[358268256,1744884662481,-500.0,0.00059178,120]
[358268257,1744884662491,-500.0,0.00059178,120]
[358268258,1744884662500,-174.83,0.00059178,120]
[358268259,1744884662510,-2000.0,0.00059243,8]
[358268260,1744884662519,-1000.0,0.0005936,15]
[358268261,1744884662529,-11255.95226985,0.00059765,120]
[358268262,1744884662538,-204.97,0.000598,120]
[358268263,1744884662547,-1400.0,0.000598,21]
[358268264,1744884662556,-179.54374065,0.00059842,78]
[358268265,1744884662566,-185.18,0.00059859,2]
[358268266,1744884662575,-500.0,0.00059884,14]
[358268267,1744884662584,-1013.82842456,0.00059884,15]
[358268268,1744884662593,-500.0,0.0005989,120]
[358268269,1744884662603,-500.0,0.0005989,120]
[358268270,1744884662612,-500.0,0.0005989,120]
[358268271,1744884662621,-500.0,0.0005989,120]
[358268272,1744884662630,-154.51505952,0.0005989,120]
[358268273,1744884662639,-200.0,0.000599,21]
[358268274,1744884662648,-17549.98983738,0.000599,15]
[358268275,1744884662657,-6318.3773457,0.000599,2]
[358268276,1744884662666,-21970.69478225,0.000599,15]
[358268277,1744884662675,-160.56827895,0.0005999,7]
[358268278,1744884662684,-300.0,0.00059999,30]
[358268279,1744884662697,-300.0,0.00059999,30]
[358268280,1744884662706,-500.0,0.00059999,2]
[358268281,1744884662716,-500.0,0.00059999,2]
[358268282,1744884662725,-500.0,0.00059999,2]
[358268283,1744884662735,-500.0,0.00059999,2]
[358268284,1744884662744,-500.0,0.00059999,2]
[358268285,1744884662754,-500.0,0.00059999,2]
[358268286,1744884662763,-500.0,0.00059999,2]
[358268287,1744884662772,-500.0,0.00059999,2]
[358268288,1744884662781,-500.0,0.00059999,2]
[358268289,1744884662790,-563.72084052,0.00059999,2]
[358268290,1744884662799,-300.0,0.00059999,30]
[358268291,1744884662808,-500.0,0.00059999,60]
[358268292,1744884662819,-666.0,0.00059999,120]
[358268293,1744884662829,-500.0,0.00059999,60]
[358268294,1744884662838,-549.20389494,0.00059999,60]
[358268295,1744884662848,-990000.0,0.0006,120]
[358268296,1744884662858,-1000000.0,0.0006,120]